[Event "January 9 Late 2024"]
[Site "https://www.chess.com"]
[Date "2024.01.10"]
[Round "1"]
[White "Shoker, Samy"]
[Black "Otero Marino, Alain"]
[Result "0-1"]
[Board "102"]
[TimeControl "180+1"]
[WhiteFideId "627143"]
[BlackFideId "3524876"]
[WhiteElo "2765"]
[BlackElo "2444"]
[WhiteTeam "EGY"]
[BlackTeam "CUB"]
[WhiteClock "0:00:04"]
[BlackClock "0:00:15"]

1. c4 {[%clk 0:03:00]}  e6 {[%clk 0:02:59]} 2. Nf3 {[%clk 0:03:00]}  d5 {[%clk 0:02:59]} 3. g3 {[%clk 0:03:01]}  Nf6 {[%clk 0:02:58]} 4. Bg2 {[%clk 0:03:01]}  Be7 {[%clk 0:02:58]} 5. O-O {[%clk 0:03:01]}  O-O {[%clk 0:02:58]} 6. b3 {[%clk 0:03:01]}  c6 {[%clk 0:02:58]} 7. Bb2 {[%clk 0:03:02]}  Nbd7 {[%clk 0:02:59]} 8. d3 {[%clk 0:03:02]}  b5 {[%clk 0:02:59]} 9. Nbd2 {[%clk 0:03:03]}  a5 {[%clk 0:02:59]} 10. Qc2 {[%clk 0:02:53]}  Bb7 {[%clk 0:02:57]} 11. e4 {[%clk 0:02:50]}  a4 {[%clk 0:02:54]} 12. e5 {[%clk 0:02:38]}  Ne8 {[%clk 0:02:54]} 13. h4 {[%clk 0:02:26]}  Nc7 {[%clk 0:02:47]} 14. Rfd1 {[%clk 0:02:20]}  Na6 {[%clk 0:02:41]} 15. a3 {[%clk 0:02:10]}  axb3 {[%clk 0:02:32]} 16. Nxb3 {[%clk 0:02:11]}  Nac5 {[%clk 0:02:30]} 17. Nbd4 {[%clk 0:02:02]}  Na4 {[%clk 0:02:22]} 18. Bc1 {[%clk 0:01:58]}  bxc4 {[%clk 0:02:17]} 19. dxc4 {[%clk 0:01:57]}  Ndb6 {[%clk 0:02:14]} 20. Rb1 {[%clk 0:01:50]}  Qc7 {[%clk 0:02:05]} 21. cxd5 {[%clk 0:01:47]}  Nxd5 {[%clk 0:02:02]} 22. Ng5 {[%clk 0:01:43]}  Bxg5 {[%clk 0:02:01]} 23. Bxg5 {[%clk 0:01:43]}  Ndc3 {[%clk 0:01:53]} 24. Rxb7 {[%clk 0:01:20]}  Qxb7 {[%clk 0:01:52]} 25. Nxc6 {[%clk 0:01:20]}  Nd5 {[%clk 0:01:19]} 26. Ne7+ {[%clk 0:01:00]}  Kh8 {[%clk 0:01:16]} 27. Nxd5 {[%clk 0:00:58]}  exd5 {[%clk 0:01:12]} 28. Bxd5 {[%clk 0:00:58]}  Qc8 {[%clk 0:00:57]} 29. Qd2 {[%clk 0:00:48]}  Ra7 {[%clk 0:00:34]} 30. Rc1 {[%clk 0:00:38]}  Rc7 {[%clk 0:00:33]} 31. Rxc7 {[%clk 0:00:23]}  Qxc7 {[%clk 0:00:33]} 32. Qb4 {[%clk 0:00:24]}  Nc5 {[%clk 0:00:29]} 33. Kg2 {[%clk 0:00:19]}  Rc8 {[%clk 0:00:27]} 34. Qd4 {[%clk 0:00:13]}  Ne6 {[%clk 0:00:25]} 35. Bxe6 {[%clk 0:00:14]}  fxe6 {[%clk 0:00:25]} 36. Be3 {[%clk 0:00:14]}  Qc6+ {[%clk 0:00:25]} 37. Kh2 {[%clk 0:00:13]}  h6 {[%clk 0:00:25]} 38. Qd6 {[%clk 0:00:13]}  Kh7 {[%clk 0:00:20]} 39. h5 {[%clk 0:00:08]}  Kh8 {[%clk 0:00:20]} 40. Qxc6 {[%clk 0:00:08]}  Rxc6 {[%clk 0:00:20]} 41. Kh3 {[%clk 0:00:04]}  Ra6 {[%clk 0:00:20]} 42. Bc5 {[%clk 0:00:05]}  Kg8 {[%clk 0:00:20]} 43. Bd6 {[%clk 0:00:05]}  Ra4 {[%clk 0:00:20]} 44. f4 {[%clk 0:00:05]}  Kf7 {[%clk 0:00:21]} 45. Kg4 {[%clk 0:00:06]}  Rc4 {[%clk 0:00:20]} 46. Kf3 {[%clk 0:00:06]}  Ke8 {[%clk 0:00:20]} 47. Kg4 {[%clk 0:00:06]}  Kd7 {[%clk 0:00:20]} 48. Bf8 {[%clk 0:00:07]}  Rc8 {[%clk 0:00:18]} 49. Bd6 {[%clk 0:00:07]}  Ra8 {[%clk 0:00:17]} 50. Kh4 {[%clk 0:00:08]}  Ke8 {[%clk 0:00:16]} 51. g4 {[%clk 0:00:08]}  Kf7 {[%clk 0:00:17]} 52. f5 {[%clk 0:00:08]}  Ra4 {[%clk 0:00:16]} 53. Bb4 {[%clk 0:00:07]}  Ra8 {[%clk 0:00:16]} 54. Kg3 {[%clk 0:00:07]}  Rc8 {[%clk 0:00:16]} 55. Kf4 {[%clk 0:00:06]}  Rc4+ {[%clk 0:00:17]} 56. Kf3 {[%clk 0:00:07]}  Rc1 {[%clk 0:00:16]} 57. Bd6 {[%clk 0:00:07]}  Rf1+ {[%clk 0:00:16]} 58. Ke4 {[%clk 0:00:07]}  Re1+ {[%clk 0:00:16]} 59. Kf4 {[%clk 0:00:08]}  Rb1 {[%clk 0:00:16]} 60. Bb4 {[%clk 0:00:08]}  Rd1 {[%clk 0:00:16]} 61. Ke4 {[%clk 0:00:07]}  Rh1 {[%clk 0:00:16]} 62. Kf4 {[%clk 0:00:07]}  exf5 {[%clk 0:00:15]} 63. gxf5 {[%clk 0:00:07]}  Rxh5 {[%clk 0:00:15]} 64. e6+ {[%clk 0:00:08]}  Ke8 {[%clk 0:00:15]} 65. Bc3 {[%clk 0:00:07]}  Rg5 {[%clk 0:00:15]} 66. a4 {[%clk 0:00:07]}  g6 {[%clk 0:00:16]} 67. fxg6 {[%clk 0:00:06]}  Rxg6 {[%clk 0:00:16]} 68. Kf5 {[%clk 0:00:06]}  Rg5+ {[%clk 0:00:16]} 69. Kf6 {[%clk 0:00:07]}  Rg3 {[%clk 0:00:15]} 70. Be5 {[%clk 0:00:05]}  Ra3 {[%clk 0:00:15]} 71. Bf4 {[%clk 0:00:05]}  h5 {[%clk 0:00:15]} 72. Bg5 {[%clk 0:00:06]}  Rxa4 {[%clk 0:00:15]} 73. Kg6 {[%clk 0:00:06]}  h4 {[%clk 0:00:15]} 74. Kf5 {[%clk 0:00:04]}  h3 {[%clk 0:00:15]} 0-1

[Event "January 9 Late 2024"]
[Site "https://www.chess.com"]
[Date "2024.01.09"]
[Round "1"]
[White "Siddharth, Jagadeesh"]
[Black "Andrews, Todd"]
[Result "1-0"]
[Board "106"]
[TimeControl "180+1"]
[WhiteFideId "5818320"]
[BlackFideId "2012456"]
[WhiteElo "2760"]
[BlackElo "2435"]
[WhiteTeam "SGP"]
[BlackTeam "USA"]
[WhiteClock "0:01:01"]
[BlackClock "0:00:11"]

1. e4 {[%clk 0:03:00]}  e6 {[%clk 0:02:59]} 2. d4 {[%clk 0:03:00]}  d5 {[%clk 0:02:59]} 3. e5 {[%clk 0:03:01]}  c5 {[%clk 0:02:59]} 4. c3 {[%clk 0:03:02]}  Nc6 {[%clk 0:03:00]} 5. Nf3 {[%clk 0:03:02]}  Qb6 {[%clk 0:03:00]} 6. Bd3 {[%clk 0:03:00]}  cxd4 {[%clk 0:02:57]} 7. O-O {[%clk 0:03:00]}  Bd7 {[%clk 0:02:57]} 8. Re1 {[%clk 0:03:00]}  Rc8 {[%clk 0:02:57]} 9. Nbd2 {[%clk 0:02:55]}  dxc3 {[%clk 0:02:54]} 10. bxc3 {[%clk 0:02:56]}  Nge7 {[%clk 0:02:26]} 11. Rb1 {[%clk 0:02:48]}  Qc7 {[%clk 0:02:25]} 12. c4 {[%clk 0:02:42]}  a6 {[%clk 0:02:10]} 13. Ba3 {[%clk 0:02:35]}  Ng6 {[%clk 0:02:03]} 14. Bxf8 {[%clk 0:02:24]}  Nxf8 {[%clk 0:01:48]} 15. cxd5 {[%clk 0:02:06]}  exd5 {[%clk 0:01:48]} 16. Qb3 {[%clk 0:01:42]}  Ne6 {[%clk 0:01:38]} 17. Qxd5 {[%clk 0:01:39]}  O-O {[%clk 0:01:38]} 18. Qe4 {[%clk 0:01:35]}  g6 {[%clk 0:01:32]} 19. Qh4 {[%clk 0:01:35]}  f5 {[%clk 0:00:45]} 20. exf6 {[%clk 0:01:31]}  Qf4 {[%clk 0:00:40]} 21. Qxf4 {[%clk 0:01:19]}  Nxf4 {[%clk 0:00:40]} 22. Bc4+ {[%clk 0:01:20]}  Kh8 {[%clk 0:00:37]} 23. Rxb7 {[%clk 0:01:21]}  Nb8 {[%clk 0:00:17]} 24. Re7 {[%clk 0:01:06]}  h6 {[%clk 0:00:16]} 25. Ne5 {[%clk 0:01:02]}  Rxf6 {[%clk 0:00:13]} 26. Nxd7 {[%clk 0:00:59]}  Nxd7 {[%clk 0:00:14]} 27. Rbxd7 {[%clk 0:01:00]}  Rxc4 {[%clk 0:00:11]} 28. Rd8+ {[%clk 0:01:00]}  Rf8 {[%clk 0:00:11]} 29. Rxf8# {[%clk 0:01:01]} 1-0

[Event "January 9 Late 2024"]
[Site "https://www.chess.com"]
[Date "2024.01.09"]
[Round "1"]
[White "Gheorghiu, Calin"]
[Black "Rohan, Ahuja"]
[Result "1-0"]
[Board "107"]
[TimeControl "180+1"]
[WhiteFideId "1200305"]
[BlackFideId "5090598"]
[WhiteElo "2433"]
[BlackElo "2759"]
[WhiteTeam "ROU"]
[BlackTeam "IND"]
[WhiteClock "0:01:11"]
[BlackClock "0:00:09"]

1. e4 {[%clk 0:03:00]}  e5 {[%clk 0:03:00]} 2. Nf3 {[%clk 0:03:00]}  Nc6 {[%clk 0:03:00]} 3. Bb5 {[%clk 0:03:00]}  a6 {[%clk 0:03:01]} 4. Ba4 {[%clk 0:03:00]}  Nf6 {[%clk 0:03:01]} 5. d3 {[%clk 0:03:01]}  d6 {[%clk 0:03:01]} 6. c3 {[%clk 0:03:00]}  g6 {[%clk 0:03:01]} 7. O-O {[%clk 0:03:00]}  Bd7 {[%clk 0:03:01]} 8. Re1 {[%clk 0:03:00]}  Bg7 {[%clk 0:03:02]} 9. Nbd2 {[%clk 0:03:01]}  O-O {[%clk 0:03:02]} 10. Nf1 {[%clk 0:03:01]}  Qe8 {[%clk 0:02:59]} 11. Ng3 {[%clk 0:03:00]}  Kh8 {[%clk 0:02:58]} 12. Bg5 {[%clk 0:02:58]}  h6 {[%clk 0:02:58]} 13. Bd2 {[%clk 0:02:55]}  Ng8 {[%clk 0:02:49]} 14. Bb3 {[%clk 0:02:51]}  f5 {[%clk 0:02:46]} 15. exf5 {[%clk 0:02:52]}  gxf5 {[%clk 0:02:47]} 16. d4 {[%clk 0:02:52]}  e4 {[%clk 0:02:30]} 17. Nh4 {[%clk 0:02:52]}  Nge7 {[%clk 0:02:15]} 18. Nh5 {[%clk 0:02:38]}  Na5 {[%clk 0:02:10]} 19. Bc2 {[%clk 0:02:31]}  Nc4 {[%clk 0:02:05]} 20. Bc1 {[%clk 0:02:30]}  Ng6 {[%clk 0:02:02]} 21. Nxg7 {[%clk 0:02:27]}  Kxg7 {[%clk 0:02:01]} 22. Qh5 {[%clk 0:02:27]}  Nxh4 {[%clk 0:00:28]} 23. Qxh6+ {[%clk 0:02:08]}  Kg8 {[%clk 0:00:26]} 24. Qxh4 {[%clk 0:02:04]}  Qg6 {[%clk 0:00:26]} 25. Bb3 {[%clk 0:02:00]}  d5 {[%clk 0:00:24]} 26. Bxc4 {[%clk 0:02:00]}  dxc4 {[%clk 0:00:25]} 27. Bf4 {[%clk 0:02:00]}  c6 {[%clk 0:00:17]} 28. Re3 {[%clk 0:01:59]}  Kf7 {[%clk 0:00:13]} 29. Be5 {[%clk 0:01:46]}  f4 {[%clk 0:00:11]} 30. Qxf4+ {[%clk 0:01:43]}  Ke8 {[%clk 0:00:11]} 31. Qxe4 {[%clk 0:01:41]}  Qxe4 {[%clk 0:00:10]} 32. Rxe4 {[%clk 0:01:42]}  Bf5 {[%clk 0:00:09]} 33. Re3 {[%clk 0:01:41]}  Kd7 {[%clk 0:00:09]} 34. Rae1 {[%clk 0:01:41]}  Rae8 {[%clk 0:00:10]} 35. f3 {[%clk 0:01:41]}  Rg8 {[%clk 0:00:10]} 36. Kf2 {[%clk 0:01:41]}  Be6 {[%clk 0:00:10]} 37. g4 {[%clk 0:01:39]}  b5 {[%clk 0:00:11]} 38. h4 {[%clk 0:01:38]}  Bd5 {[%clk 0:00:11]} 39. h5 {[%clk 0:01:38]}  Ref8 {[%clk 0:00:12]} 40. Kg3 {[%clk 0:01:37]}  Rf7 {[%clk 0:00:12]} 41. h6 {[%clk 0:01:37]}  Rg6 {[%clk 0:00:11]} 42. Rh1 {[%clk 0:01:35]}  Rh7 {[%clk 0:00:12]} 43. Bf4 {[%clk 0:01:30]}  a5 {[%clk 0:00:11]} 44. a3 {[%clk 0:01:29]}  Be6 {[%clk 0:00:09]} 45. Re5 {[%clk 0:01:28]}  Bd5 {[%clk 0:00:10]} 46. Rg5 {[%clk 0:01:25]}  Rf6 {[%clk 0:00:10]} 47. Rg7+ {[%clk 0:01:21]}  Rxg7 {[%clk 0:00:10]} 48. hxg7 {[%clk 0:01:21]}  Rg6 {[%clk 0:00:11]} 49. Be5 {[%clk 0:01:16]}  Ke7 {[%clk 0:00:08]} 50. f4 {[%clk 0:01:15]}  Bg8 {[%clk 0:00:08]} 51. f5 {[%clk 0:01:15]}  Rg5 {[%clk 0:00:08]} 52. Kf4 {[%clk 0:01:11]}  Kf7 {[%clk 0:00:09]} 53. Kxg5 {[%clk 0:01:11]}  Ke7 {[%clk 0:00:09]} 54. Rh6 {[%clk 0:01:11]} 1-0

[Event "January 9 Late 2024"]
[Site "https://www.chess.com"]
[Date "2024.01.09"]
[Round "1"]
[White "Karacsonyi, Gellert"]
[Black "Hejazipour, Mitra"]
[Result "1-0"]
[Board "108"]
[TimeControl "180+1"]
[WhiteFideId "764620"]
[BlackFideId "12505951"]
[WhiteElo "2755"]
[BlackElo "2432"]
[WhiteTeam "HUN"]
[BlackTeam "FRA"]
[WhiteClock "0:02:15"]
[BlackClock "0:00:37"]

1. e4 {[%clk 0:03:00]}  c5 {[%clk 0:02:59]} 2. Nf3 {[%clk 0:03:00]}  d6 {[%clk 0:02:58]} 3. d4 {[%clk 0:03:01]}  cxd4 {[%clk 0:02:58]} 4. Nxd4 {[%clk 0:03:02]}  Nf6 {[%clk 0:02:58]} 5. Nc3 {[%clk 0:03:02]}  a6 {[%clk 0:02:58]} 6. Bc4 {[%clk 0:03:02]}  e6 {[%clk 0:02:58]} 7. O-O {[%clk 0:03:02]}  Nbd7 {[%clk 0:02:58]} 8. Bxe6 {[%clk 0:03:02]}  fxe6 {[%clk 0:02:56]} 9. Nxe6 {[%clk 0:03:03]}  Qa5 {[%clk 0:02:53]} 10. Nd5 {[%clk 0:03:03]}  Nxd5 {[%clk 0:02:33]} 11. exd5 {[%clk 0:03:04]}  Nf6 {[%clk 0:02:21]} 12. Bd2 {[%clk 0:03:04]}  Qb6 {[%clk 0:02:20]} 13. Be3 {[%clk 0:03:04]}  Qa5 {[%clk 0:02:11]} 14. b4 {[%clk 0:03:04]}  Qxb4 {[%clk 0:02:09]} 15. Nc7+ {[%clk 0:03:05]}  Kf7 {[%clk 0:02:09]} 16. Nxa8 {[%clk 0:03:06]}  Be7 {[%clk 0:02:00]} 17. Nb6 {[%clk 0:03:02]}  Bg4 {[%clk 0:01:52]} 18. Qd4 {[%clk 0:03:02]}  Qa5 {[%clk 0:01:37]} 19. c4 {[%clk 0:02:52]}  Bf5 {[%clk 0:01:26]} 20. Rfe1 {[%clk 0:02:50]}  Re8 {[%clk 0:01:22]} 21. Qf4 {[%clk 0:02:37]}  g6 {[%clk 0:01:19]} 22. Bd4 {[%clk 0:02:30]}  Bd8 {[%clk 0:00:45]} 23. Rxe8 {[%clk 0:02:28]}  Nxe8 {[%clk 0:00:45]} 24. g4 {[%clk 0:02:22]}  Bxb6 {[%clk 0:00:44]} 25. Bxb6 {[%clk 0:02:22]}  Qxb6 {[%clk 0:00:44]} 26. gxf5 {[%clk 0:02:23]}  Qb2 {[%clk 0:00:42]} 27. fxg6+ {[%clk 0:02:22]}  Kxg6 {[%clk 0:00:42]} 28. Re1 {[%clk 0:02:20]}  Ng7 {[%clk 0:00:40]} 29. Qg4+ {[%clk 0:02:16]}  Kf7 {[%clk 0:00:37]} 30. Qd7+ {[%clk 0:02:15]} 1-0

[Event "January 9 Late 2024"]
[Site "https://www.chess.com"]
[Date "2024.01.09"]
[Round "1"]
[White "Leitao, Rafael"]
[Black "Bueno, Alfeu Junior Varela"]
[Result "1-0"]
[Board "114"]
[TimeControl "180+1"]
[WhiteFideId "2101246"]
[BlackFideId "2108879"]
[WhiteElo "2745"]
[BlackElo "2416"]
[WhiteTeam "BRA"]
[BlackTeam "BRA"]
[WhiteClock "0:00:39"]
[BlackClock "0:00:01"]

1. c4 {[%clk 0:03:00]}  e5 {[%clk 0:03:00]} 2. Nc3 {[%clk 0:03:00]}  Nc6 {[%clk 0:03:00]} 3. Nf3 {[%clk 0:02:59]}  f5 {[%clk 0:03:00]} 4. d4 {[%clk 0:02:57]}  e4 {[%clk 0:03:00]} 5. Ng5 {[%clk 0:02:58]}  Bb4 {[%clk 0:02:58]} 6. Nh3 {[%clk 0:02:56]}  Bxc3+ {[%clk 0:02:56]} 7. bxc3 {[%clk 0:02:56]}  Nf6 {[%clk 0:02:57]} 8. Nf4 {[%clk 0:02:53]}  O-O {[%clk 0:02:54]} 9. e3 {[%clk 0:02:52]}  d6 {[%clk 0:02:51]} 10. Be2 {[%clk 0:02:52]}  Qe8 {[%clk 0:02:28]} 11. h4 {[%clk 0:02:34]}  Ne7 {[%clk 0:02:21]} 12. h5 {[%clk 0:02:31]}  c5 {[%clk 0:02:05]} 13. a4 {[%clk 0:02:17]}  Nc6 {[%clk 0:01:55]} 14. a5 {[%clk 0:02:10]}  Rb8 {[%clk 0:01:53]} 15. Nd5 {[%clk 0:01:55]}  Qf7 {[%clk 0:01:48]} 16. Qb3 {[%clk 0:01:46]}  b6 {[%clk 0:01:27]} 17. axb6 {[%clk 0:01:43]}  axb6 {[%clk 0:01:26]} 18. Rb1 {[%clk 0:01:38]}  Na5 {[%clk 0:01:21]} 19. Qa2 {[%clk 0:01:31]}  Nxd5 {[%clk 0:00:41]} 20. cxd5 {[%clk 0:01:32]}  Qc7 {[%clk 0:00:34]} 21. dxc5 {[%clk 0:01:27]}  Qxc5 {[%clk 0:00:34]} 22. c4 {[%clk 0:01:23]}  Ba6 {[%clk 0:00:30]} 23. h6 {[%clk 0:01:14]}  Bxc4 {[%clk 0:00:14]} 24. Qa1 {[%clk 0:01:10]}  gxh6 {[%clk 0:00:09]} 25. Ba3 {[%clk 0:01:04]}  Qxd5 {[%clk 0:00:06]} 26. Rd1 {[%clk 0:01:00]}  Qb5 {[%clk 0:00:04]} 27. Rh3 {[%clk 0:00:44]}  Bxe2 {[%clk 0:00:01]} 28. Rg3+ {[%clk 0:00:44]}  Kf7 {[%clk 0:00:02]} 29. Qg7+ {[%clk 0:00:41]}  Ke8 {[%clk 0:00:02]} 30. Bxd6 {[%clk 0:00:39]}  Nc4 {[%clk 0:00:01]} 1-0

[Event "January 9 Late 2024"]
[Site "https://www.chess.com"]
[Date "2024.01.10"]
[Round "1"]
[White "Hoeffer, David"]
[Black "Khatoev, Eduard"]
[Result "1/2-1/2"]
[Board "117"]
[TimeControl "180+1"]
[WhiteFideId "24606766"]
[BlackFideId "24145076"]
[WhiteElo "2414"]
[BlackElo "2742"]
[WhiteTeam "GER"]
[BlackTeam "RUS"]
[WhiteClock "0:00:21"]
[BlackClock "0:00:21"]

1. e4 {[%clk 0:02:53]}  c6 {[%clk 0:02:59]} 2. Nc3 {[%clk 0:02:45]}  d5 {[%clk 0:03:00]} 3. Qf3 {[%clk 0:02:45]}  dxe4 {[%clk 0:02:59]} 4. Nxe4 {[%clk 0:02:46]}  e6 {[%clk 0:02:59]} 5. c3 {[%clk 0:02:44]}  f5 {[%clk 0:02:59]} 6. Ng3 {[%clk 0:02:43]}  Nf6 {[%clk 0:02:57]} 7. d4 {[%clk 0:02:43]}  Be7 {[%clk 0:02:57]} 8. Bd3 {[%clk 0:02:42]}  Nbd7 {[%clk 0:02:55]} 9. Bf4 {[%clk 0:02:40]}  h6 {[%clk 0:02:54]} 10. h4 {[%clk 0:02:40]}  c5 {[%clk 0:02:53]} 11. O-O-O {[%clk 0:02:39]}  cxd4 {[%clk 0:02:52]} 12. cxd4 {[%clk 0:02:38]}  Qb6 {[%clk 0:02:49]} 13. Bc2 {[%clk 0:02:32]}  Ng4 {[%clk 0:02:47]} 14. N1e2 {[%clk 0:02:24]}  Rf8 {[%clk 0:02:26]} 15. Nc3 {[%clk 0:02:18]}  Ndf6 {[%clk 0:02:25]} 16. Rhe1 {[%clk 0:02:15]}  Bd7 {[%clk 0:02:24]} 17. d5 {[%clk 0:02:07]}  g5 {[%clk 0:02:13]} 18. hxg5 {[%clk 0:02:06]}  hxg5 {[%clk 0:02:13]} 19. Bxg5 {[%clk 0:01:54]}  Qxf2 {[%clk 0:02:08]} 20. dxe6 {[%clk 0:01:42]}  Bc6 {[%clk 0:02:07]} 21. Ba4 {[%clk 0:01:09]}  Bxa4 {[%clk 0:02:06]} 22. Nxa4 {[%clk 0:01:03]}  Qxf3 {[%clk 0:02:06]} 23. gxf3 {[%clk 0:01:03]}  Nf2 {[%clk 0:02:04]} 24. Rd2 {[%clk 0:00:54]}  Rc8+ {[%clk 0:01:33]} 25. Nc3 {[%clk 0:00:54]}  Rg8 {[%clk 0:01:29]} 26. Bxf6 {[%clk 0:00:39]}  Bxf6 {[%clk 0:01:28]} 27. Nxf5 {[%clk 0:00:39]}  Bg5 {[%clk 0:01:27]} 28. Nd6+ {[%clk 0:00:32]}  Ke7 {[%clk 0:01:26]} 29. Nxc8+ {[%clk 0:00:31]}  Rxc8 {[%clk 0:01:25]} 30. Kc2 {[%clk 0:00:26]}  Bxd2 {[%clk 0:01:24]} 31. Kxd2 {[%clk 0:00:27]}  Rd8+ {[%clk 0:01:01]} 32. Kc2 {[%clk 0:00:17]}  Nd3 {[%clk 0:01:01]} 33. Rh1 {[%clk 0:00:15]}  Kxe6 {[%clk 0:01:00]} 34. Rh7 {[%clk 0:00:15]}  Ne1+ {[%clk 0:01:00]} 35. Kb3 {[%clk 0:00:15]}  Rd7 {[%clk 0:00:52]} 36. Rxd7 {[%clk 0:00:14]}  Kxd7 {[%clk 0:00:53]} 37. Ne4 {[%clk 0:00:15]}  Nxf3 {[%clk 0:00:52]} 38. Nc5+ {[%clk 0:00:16]}  Kc6 {[%clk 0:00:51]} 39. Ne6 {[%clk 0:00:16]}  Kd6 {[%clk 0:00:50]} 40. Nf4 {[%clk 0:00:16]}  Ke5 {[%clk 0:00:49]} 41. Nd3+ {[%clk 0:00:16]}  Kd4 {[%clk 0:00:49]} 42. Nf4 {[%clk 0:00:17]}  a6 {[%clk 0:00:47]} 43. a4 {[%clk 0:00:16]}  Ke3 {[%clk 0:00:46]} 44. Nd5+ {[%clk 0:00:16]}  Kd4 {[%clk 0:00:42]} 45. Nf4 {[%clk 0:00:17]}  Ke4 {[%clk 0:00:41]} 46. Ne6 {[%clk 0:00:17]}  Nd4+ {[%clk 0:00:38]} 47. Nxd4 {[%clk 0:00:17]}  Kxd4 {[%clk 0:00:38]} 48. Kb4 {[%clk 0:00:18]}  b6 {[%clk 0:00:38]} 49. b3 {[%clk 0:00:17]}  Kd5 {[%clk 0:00:37]} 50. Kc3 {[%clk 0:00:17]}  Kc5 {[%clk 0:00:36]} 51. b4+ {[%clk 0:00:18]}  Kd5 {[%clk 0:00:36]} 52. Kd3 {[%clk 0:00:18]}  b5 {[%clk 0:00:35]} 53. axb5 {[%clk 0:00:18]}  axb5 {[%clk 0:00:35]} 54. Kd2 {[%clk 0:00:15]}  Kd4 {[%clk 0:00:34]} 55. Kc1 {[%clk 0:00:14]}  Kc3 {[%clk 0:00:34]} 56. Kb1 {[%clk 0:00:14]}  Kxb4 {[%clk 0:00:34]} 57. Kb2 {[%clk 0:00:15]}  Kc4 {[%clk 0:00:33]} 58. Kc2 {[%clk 0:00:15]}  b4 {[%clk 0:00:33]} 59. Kb2 {[%clk 0:00:16]}  Kd4 {[%clk 0:00:29]} 60. Kb3 {[%clk 0:00:16]}  Kc5 {[%clk 0:00:28]} 61. Kb2 {[%clk 0:00:17]}  Kc4 {[%clk 0:00:28]} 62. Kc2 {[%clk 0:00:17]}  b3+ {[%clk 0:00:28]} 63. Kb2 {[%clk 0:00:18]}  Kb4 {[%clk 0:00:27]} 64. Kb1 {[%clk 0:00:18]}  Kc3 {[%clk 0:00:27]} 65. Kc1 {[%clk 0:00:18]}  Kd3 {[%clk 0:00:26]} 66. Kb2 {[%clk 0:00:19]}  Kc4 {[%clk 0:00:25]} 67. Kb1 {[%clk 0:00:20]}  Kb4 {[%clk 0:00:24]} 68. Kb2 {[%clk 0:00:20]}  Ka4 {[%clk 0:00:22]} 69. Kb1 {[%clk 0:00:21]}  Ka3 {[%clk 0:00:20]} 70. Ka1 {[%clk 0:00:21]}  b2+ {[%clk 0:00:20]} 71. Kb1 {[%clk 0:00:21]}  Kb3 {[%clk 0:00:21]} 1/2-1/2

[Event "January 9 Late 2024"]
[Site "https://www.chess.com"]
[Date "2024.01.09"]
[Round "1"]
[White "Rastbod, Ali"]
[Black "Meduri, Aakaash"]
[Result "1-0"]
[Board "118"]
[TimeControl "180+1"]
[WhiteFideId "12567477"]
[BlackFideId "2032252"]
[WhiteElo "2736"]
[BlackElo "2413"]
[WhiteTeam "IRI"]
[BlackTeam "USA"]
[WhiteClock "0:00:20"]
[BlackClock "0:00:00"]

1. e4 {[%clk 0:02:59]}  c5 {[%clk 0:02:59]} 2. Nf3 {[%clk 0:02:57]}  d6 {[%clk 0:03:00]} 3. Bb5+ {[%clk 0:02:57]}  Bd7 {[%clk 0:03:00]} 4. Bxd7+ {[%clk 0:02:54]}  Nxd7 {[%clk 0:03:01]} 5. O-O {[%clk 0:02:54]}  Ngf6 {[%clk 0:03:01]} 6. Qe2 {[%clk 0:02:54]}  e6 {[%clk 0:02:59]} 7. b3 {[%clk 0:02:54]}  Be7 {[%clk 0:02:57]} 8. Bb2 {[%clk 0:02:54]}  O-O {[%clk 0:02:57]} 9. c4 {[%clk 0:02:55]}  Qb6 {[%clk 0:02:52]} 10. d4 {[%clk 0:02:52]}  d5 {[%clk 0:02:48]} 11. exd5 {[%clk 0:02:49]}  exd5 {[%clk 0:02:45]} 12. cxd5 {[%clk 0:02:09]}  Nxd5 {[%clk 0:02:43]} 13. Nc3 {[%clk 0:02:03]}  Nxc3 {[%clk 0:02:22]} 14. Bxc3 {[%clk 0:02:04]}  Bf6 {[%clk 0:02:13]} 15. Rad1 {[%clk 0:01:53]}  Rfe8 {[%clk 0:02:04]} 16. Qb2 {[%clk 0:01:46]}  cxd4 {[%clk 0:02:02]} 17. Bxd4 {[%clk 0:01:47]}  Bxd4 {[%clk 0:02:01]} 18. Rxd4 {[%clk 0:01:46]}  Nf6 {[%clk 0:01:57]} 19. Rfd1 {[%clk 0:01:38]}  Rac8 {[%clk 0:01:55]} 20. h3 {[%clk 0:01:35]}  h6 {[%clk 0:01:51]} 21. Rd6 {[%clk 0:01:31]}  Qb5 {[%clk 0:01:44]} 22. Qd4 {[%clk 0:01:23]}  a6 {[%clk 0:01:40]} 23. Rb6 {[%clk 0:01:22]}  Qa5 {[%clk 0:01:31]} 24. Rxb7 {[%clk 0:01:15]}  Qxa2 {[%clk 0:01:28]} 25. Qa7 {[%clk 0:01:13]}  Rf8 {[%clk 0:01:01]} 26. Ne5 {[%clk 0:01:10]}  Qe2 {[%clk 0:00:54]} 27. Qd4 {[%clk 0:00:43]}  Rc2 {[%clk 0:00:46]} 28. Rf1 {[%clk 0:00:33]}  Rd2 {[%clk 0:00:45]} 29. Qf4 {[%clk 0:00:31]}  Nd5 {[%clk 0:00:38]} 30. Qg3 {[%clk 0:00:29]}  Rd1 {[%clk 0:00:27]} 31. Rxd1 {[%clk 0:00:28]}  Qxd1+ {[%clk 0:00:28]} 32. Kh2 {[%clk 0:00:29]}  Nf6 {[%clk 0:00:22]} 33. Rb6 {[%clk 0:00:24]}  Qe2 {[%clk 0:00:20]} 34. Rxf6 {[%clk 0:00:22]}  Re8 {[%clk 0:00:15]} 35. Nxf7 {[%clk 0:00:15]}  Kf8 {[%clk 0:00:08]} 36. Rf3 {[%clk 0:00:15]}  Kg8 {[%clk 0:00:03]} 37. Nxh6+ {[%clk 0:00:15]}  Kh7 {[%clk 0:00:03]} 38. Nf5 {[%clk 0:00:15]}  Qe5 {[%clk 0:00:02]} 39. Qxe5 {[%clk 0:00:13]}  Rxe5 {[%clk 0:00:03]} 40. g4 {[%clk 0:00:12]}  Rb5 {[%clk 0:00:03]} 41. Kg3 {[%clk 0:00:12]}  g6 {[%clk 0:00:03]} 42. Nd4 {[%clk 0:00:13]}  Rb4 {[%clk 0:00:04]} 43. Ne6 {[%clk 0:00:13]}  Kg8 {[%clk 0:00:04]} 44. Ng5 {[%clk 0:00:14]}  Kg7 {[%clk 0:00:04]} 45. h4 {[%clk 0:00:15]}  Rb5 {[%clk 0:00:04]} 46. Rc3 {[%clk 0:00:15]}  a5 {[%clk 0:00:04]} 47. f4 {[%clk 0:00:16]}  Rb4 {[%clk 0:00:04]} 48. h5 {[%clk 0:00:16]}  gxh5 {[%clk 0:00:03]} 49. gxh5 {[%clk 0:00:17]}  a4 {[%clk 0:00:04]} 50. bxa4 {[%clk 0:00:18]}  Rxa4 {[%clk 0:00:05]} 51. Kg4 {[%clk 0:00:18]}  Rb4 {[%clk 0:00:05]} 52. Rc7+ {[%clk 0:00:18]}  Kg8 {[%clk 0:00:04]} 53. h6 {[%clk 0:00:19]}  Rb8 {[%clk 0:00:02]} 54. Kh5 {[%clk 0:00:20]}  Kh8 {[%clk 0:00:01]} 55. f5 {[%clk 0:00:20]}  Rf8 {[%clk 0:00:00]} 56. f6 {[%clk 0:00:20]} 1-0